fUST/lending_fUST_20250803
["ID","MTS","AMOUNT","RATE_DAILY","PERIOD"]
[377007949,1754202648685,-460.0,0.00027945,10]
[377007950,1754202648696,-460.0,0.00027945,10]
[377007951,1754202648705,-460.0,0.00027945,10]
[377007952,1754202648715,-460.0,0.00027945,10]
[377007953,1754202648724,-460.0,0.00027945,10]
[377007954,1754202648734,-460.0,0.00027945,10]
[377007955,1754202648743,-460.0,0.00027945,10]
[377007956,1754202648753,-460.0,0.00027945,10]
[377007957,1754202648761,-460.0,0.00027945,10]
[377007958,1754202648771,-460.0,0.00027945,10]
[377007959,1754202648780,-460.0,0.00027945,10]
[377007960,1754202648789,-460.0,0.00027945,10]
[377007961,1754202648799,-460.0,0.00027945,10]
[377007962,1754202648809,-460.0,0.00027945,10]
[377007963,1754202648818,-460.0,0.00027945,10]
[377007964,1754202648827,-460.0,0.00027945,10]
[377007965,1754202648837,-460.0,0.00027945,10]
[377007966,1754202648847,-460.0,0.00027945,10]
[377007967,1754202648856,-460.0,0.00027945,10]
[377007968,1754202648865,-856.88,0.00027945,10]
[377007969,1754202648875,-164.71,0.00027945,10]
[377007970,1754202648884,-460.0,0.00027945,10]
[377007971,1754202648894,-460.0,0.00027945,10]
[377007972,1754202648903,-460.0,0.00027945,10]
[377007973,1754202648913,-460.0,0.00027945,10]
[377007974,1754202648922,-460.0,0.00027945,10]
[377007975,1754202648932,-460.0,0.00027945,10]
[377007976,1754202648941,-366.24621545,0.00027945,10]
[377007977,1754202648950,-460.0,0.00027945,10]
[377007978,1754202648960,-460.0,0.00027945,10]
[377007979,1754202648969,-460.0,0.00027945,10]
[377007980,1754202648978,-460.0,0.00027945,10]
[377007981,1754202648988,-500.0,0.00027945,10]
[377007982,1754202648997,-460.0,0.00027945,10]
[377007983,1754202649006,-463.35767778,0.00027945,10]
[377007984,1754202649026,-278.7242481,0.00027945,10]
[377007985,1754202649036,-500.0,0.00027945,10]
[377007986,1754202649046,-460.0,0.00027945,10]
[377007987,1754202649055,-500.0,0.00027945,10]
[377007988,1754202649065,-856.88,0.00027945,10]
[377007989,1754202649075,-460.0,0.00027945,10]
[377007990,1754202649084,-500.0,0.00027945,10]
[377007991,1754202649094,-460.0,0.00027945,10]
[377007992,1754202649104,-856.88,0.00027945,10]
[377007993,1754202649114,-500.0,0.00027945,10]
[377007994,1754202649123,-460.0,0.00027945,10]
[377007995,1754202649133,-500.0,0.00027945,10]
[377007996,1754202649143,-856.88,0.00027945,10]
[377007997,1754202649153,-460.0,0.00027945,10]
[377007998,1754202649163,-500.0,0.00027945,10]
[377007999,1754202649172,-856.88,0.00027945,10]
[377008000,1754202649182,-500.0,0.00027945,10]
[377008001,1754202649192,-460.0,0.00027945,10]
[377008002,1754202649202,-460.0,0.00027945,10]
[377008003,1754202649212,-500.0,0.00027945,10]
[377008004,1754202649222,-460.0,0.00027945,10]
[377008005,1754202649232,-460.0,0.00027945,10]
[377008006,1754202649242,-460.0,0.00027945,10]
[377008007,1754202649251,-460.0,0.00027945,10]
[377008008,1754202649261,-460.0,0.00027945,10]
[377008009,1754202649271,-460.0,0.00027945,10]
[377008010,1754202649281,-500.0,0.00027945,10]
[377008011,1754202649291,-460.0,0.00027945,10]
[377008012,1754202649301,-460.0,0.00027945,10]
[377008013,1754202649310,-460.0,0.00027945,10]
[377008014,1754202649320,-460.0,0.00027945,10]
[377008015,1754202649329,-500.0,0.00027945,10]
[377008016,1754202649339,-856.88,0.00027945,10]
[377008017,1754202649348,-309.67265234,0.00027945,10]
[377008018,1754202649358,-460.0,0.00027945,10]
[377008019,1754202649366,-460.0,0.00027945,10]
[377008020,1754202649376,-856.88,0.00027945,10]
[377008021,1754202649385,-500.0,0.00027945,10]
[377008022,1754202649395,-460.0,0.00027945,10]
[377008023,1754202649404,-856.88,0.00027945,10]
[377008024,1754202649413,-460.0,0.00027945,10]
[377008025,1754202649423,-171.2766458,0.00027945,10]
[377008026,1754202649432,-500.0,0.00027945,10]
[377008027,1754202649442,-460.0,0.00027945,10]
[377008028,1754202649451,-460.0,0.00027945,10]
[377008029,1754202649461,-856.88,0.00027945,10]
[377008030,1754202649470,-500.0,0.00027945,10]
[377008031,1754202649479,-500.0,0.00027945,10]
[377008032,1754202649489,-460.0,0.00027945,10]
[377008033,1754202649498,-473.01884688,0.00027945,10]
[377008034,1754202649507,-460.0,0.00027945,10]
[377008035,1754202649517,-460.0,0.00027945,10]
[377008036,1754202649527,-460.0,0.00027945,10]
[377008037,1754202649536,-460.0,0.00027945,10]
[377008038,1754202649545,-460.0,0.00027945,10]
[377008039,1754202649555,-154.77667182,0.00027945,10]
[377008040,1754202649564,-460.0,0.00027945,10]
[377008041,1754202649573,-460.0,0.00027945,10]
[377008042,1754202649583,-460.0,0.00027945,10]
[377008043,1754202649592,-460.0,0.00027945,10]
[377008044,1754202649601,-460.0,0.00027945,10]
[377008045,1754202649612,-460.0,0.00027945,10]
[377008046,1754202649624,-465.73736626,0.00027945,10]
[377008047,1754202649633,-460.0,0.00027945,10]
[377008048,1754202649642,-420.05009567,0.00027945,10]
[377008049,1754202649652,-460.0,0.00027945,10]
[377008050,1754202649662,-460.0,0.00027945,10]
[377008051,1754202649671,-460.0,0.00027945,10]
[377008052,1754202649681,-460.0,0.00027945,10]
[377008053,1754202649693,-460.0,0.00027945,10]
[377008054,1754202649702,-521.34,0.00027945,10]
[377008055,1754202649712,-460.0,0.00027945,10]
[377008056,1754202649722,-460.0,0.00027945,10]
[377008057,1754202649731,-460.0,0.00027945,10]
[377008058,1754202649742,-460.0,0.00027945,10]
[377008059,1754202649753,-331.95263139,0.00027945,10]
[377008060,1754202649764,-460.0,0.00027945,10]
[377008061,1754202649774,-460.0,0.00027945,10]
[377008062,1754202649787,-460.0,0.00027945,10]
[377008063,1754202649798,-460.0,0.00027945,10]
[377008064,1754202649807,-460.0,0.00027945,10]
[377008065,1754202649817,-527.5697204,0.00027945,10]
[377008066,1754202649827,-460.0,0.00027945,10]
[377008067,1754202649838,-460.0,0.00027945,10]
[377008068,1754202649848,-460.0,0.00027945,10]
[377008069,1754202649857,-460.0,0.00027945,10]
[377008070,1754202649868,-460.0,0.00027945,10]
[377008071,1754202649880,-460.0,0.00027945,10]
[377008072,1754202649897,-460.0,0.00027945,10]
[377008073,1754202649908,-460.0,0.00027945,10]
[377008074,1754202649918,-520.4,0.00027945,10]
[377008075,1754202649928,-513.53467035,0.00027945,10]
[377008076,1754202649938,-460.0,0.00027945,10]
[377008077,1754202649949,-151.0,0.00027945,7]
[377008078,1754202649959,-460.0,0.00027945,10]
[377008079,1754202649969,-460.0,0.00027945,10]
[377008080,1754202649978,-467.63840883,0.00027945,10]
[377008081,1754202649987,-465.33879138,0.00027945,10]
[377008082,1754202649997,-460.0,0.00027945,10]
[377008083,1754202650006,-461.713866,0.00027945,10]
[377008084,1754202650015,-701.01,0.00027945,10]
[377008085,1754202650025,-701.01,0.00027945,10]
[377008086,1754202650034,-381.46133845,0.00027945,10]
[377008087,1754202650043,-701.01,0.00027945,10]
[377008088,1754202650052,-701.01,0.00027945,10]
[377008089,1754202650062,-701.01,0.00027945,10]
[377008090,1754202650071,-701.01,0.00027945,10]
[377008091,1754202650081,-701.01,0.00027945,10]
[377008092,1754202650094,-701.01,0.00027945,10]
[377008093,1754202650104,-701.01,0.00027945,10]
[377008094,1754202650113,-1164.73,0.00027945,10]
[377008095,1754202650123,-1164.73,0.00027945,10]
[377008096,1754202650132,-1116.2,0.00027945,10]
[377008097,1754202650142,-464.0926802,0.00027945,10]
[377008098,1754202650151,-701.01,0.00027945,10]
[377008099,1754202650161,-461.29939314,0.00027945,10]
[377008100,1754202650170,-1164.73,0.00027945,10]
[377008101,1754202650180,-701.01,0.00027945,10]
[377008102,1754202650189,-1116.2,0.00027945,10]
[377008103,1754202650199,-701.01,0.00027945,10]
[377008104,1754202650209,-1164.73,0.00027945,10]
[377008105,1754202650219,-1116.2,0.00027945,10]
[377008106,1754202650228,-701.01,0.00027945,10]
[377008107,1754202650238,-701.01,0.00027945,10]
[377008108,1754202650248,-701.01,0.00027945,10]
[377008109,1754202650257,-1164.73,0.00027945,10]
[377008110,1754202650267,-701.01,0.00027945,10]
[377008111,1754202650277,-1116.2,0.00027945,10]
[377008112,1754202650287,-460.0,0.00027945,10]
[377008113,1754202650392,-1164.73,0.00027945,10]
[377008114,1754202650402,-701.01,0.00027945,10]
[377008115,1754202650412,-460.0,0.00027945,10]
[377008116,1754202650421,-1116.2,0.00027945,10]
[377008117,1754202650430,-701.01,0.00027945,10]
[377008118,1754202650439,-460.0,0.00027945,10]
[377008119,1754202650448,-701.01,0.00027945,10]
[377008120,1754202650459,-1116.2,0.00027945,10]
[377008121,1754202650469,-460.0,0.00027945,10]
[377008122,1754202650479,-701.01,0.00027945,10]
[377008123,1754202650490,-460.0,0.00027945,10]
[377008124,1754202650501,-701.01,0.00027945,10]
[377008125,1754202650511,-168.70531473,0.00027945,10]
[377008126,1754202650521,-1116.2,0.00027945,10]
[377008127,1754202650531,-1116.2,0.00027945,10]
[377008128,1754202650542,-701.01,0.00027945,10]
[377008129,1754202650553,-701.01,0.00027945,10]
[377008130,1754202650564,-701.18019924,0.00027945,10]
[377008131,1754202650574,-460.0,0.00027945,10]
[377008132,1754202650584,-439.13901934,0.00027945,10]
[377008133,1754202650594,-462.71653595,0.00027945,10]
[377008134,1754202650604,-460.0,0.00027945,10]
[377008135,1754202650614,-460.0,0.00027945,10]
[377008136,1754202650623,-460.0,0.00027945,10]
[377008137,1754202650632,-464.19089363,0.00027945,10]
[377008138,1754202650642,-463.70259197,0.00027945,10]
[377008139,1754202650651,-460.0,0.00027945,10]
[377008140,1754202650660,-460.0,0.00027945,10]
[377008141,1754202650669,-460.0,0.00027945,10]
[377008142,1754202650679,-460.0,0.00027945,10]
[377008143,1754202650690,-460.0,0.00027945,10]
[377008144,1754202650701,-460.0,0.00027945,10]
[377008145,1754202650711,-460.0,0.00027945,10]
[377008146,1754202650722,-460.0,0.00027945,10]
[377008147,1754202650732,-460.0,0.00027945,10]
[377008148,1754202650743,-460.0,0.00027945,10]
[377008149,1754202650763,-460.0,0.00027945,10]
[377008150,1754202650773,-460.0,0.00027945,10]
[377008151,1754202650783,-460.0,0.00027945,10]
[377008152,1754202650795,-460.0,0.00027945,10]
[377008153,1754202650804,-460.0,0.00027945,10]
[377008154,1754202650815,-460.0,0.00027945,10]
[377008155,1754202650825,-468.48737926,0.00027945,10]
[377008156,1754202650836,-460.0,0.00027945,10]
[377008157,1754202650845,-460.0,0.00027945,10]
[377008158,1754202650855,-460.0,0.00027945,10]
[377008159,1754202650865,-463.89786496,0.00027945,10]
[377008160,1754202650875,-460.0,0.00027945,10]
[377008161,1754202650885,-460.0,0.00027945,10]
[377008162,1754202650894,-500.0,0.00027961,10]
[377008163,1754202650904,-460.0,0.00027972,10]
[377008164,1754202650915,-1078.74,0.00027972,10]
[377008165,1754202650925,-500.0,0.00027972,10]
[377008166,1754202650935,-216.32054205,0.00027972,2]
[377008167,1754202650945,-561.87023534,0.00027973,5]
[377008168,1754202650954,-501.98962838,0.00027973,5]
[377008169,1754202650965,-500.0,0.00027973,5]
[377008170,1754202650974,-500.0,0.00027973,5]
[377008171,1754202650984,-500.49503637,0.00027973,5]
[377008172,1754202650993,-500.0,0.00027973,5]
[377008173,1754202651002,-500.0,0.00027973,5]
[377008174,1754202651012,-600.0,0.00027973,5]
[377008175,1754202651023,-308.59479276,0.00027973,5]
[377008176,1754202651033,-504.94630883,0.00027973,5]
[377008177,1754202651043,-500.0,0.00027973,2]
[377008178,1754202651053,-500.0,0.00027973,5]
[377008179,1754202651064,-501.40624993,0.00027973,5]
[377008180,1754202651075,-393.77772868,0.00027973,5]
[377008181,1754202651086,-500.0,0.00027973,5]
[377008182,1754202651097,-500.0,0.00027973,5]
[377008183,1754202651108,-500.0,0.00027973,5]
[377008184,1754202651119,-500.0,0.00027973,5]
[377008185,1754202651130,-500.0,0.00027973,5]
[377008186,1754202651139,-500.0,0.00027973,5]
[377008187,1754202651148,-150.0,0.00027973,5]
[377008188,1754202651157,-500.0,0.00027973,5]
[377008189,1754202651166,-500.0,0.00027973,5]
[377008190,1754202651175,-500.0,0.00027973,5]
[377008191,1754202651184,-500.0,0.00027973,5]
[377008192,1754202651194,-501.43797986,0.00027973,5]
[377008193,1754202651203,-500.0,0.00027973,5]
[377008194,1754202651212,-500.0,0.00027973,5]
[377008195,1754202651221,-500.0,0.00027973,5]
[377008196,1754202651231,-500.0,0.00027973,5]
[377008197,1754202651240,-500.0,0.00027973,5]
[377008198,1754202651250,-500.0,0.00027973,5]
[377008199,1754202651259,-500.0,0.00027973,5]
[377008200,1754202651268,-500.0,0.00027973,5]
[377008201,1754202651278,-500.0,0.00027973,5]
[377008202,1754202651287,-500.0,0.00027973,5]
[377008203,1754202651296,-500.0,0.00027973,5]
[377008204,1754202651305,-500.0,0.00027973,5]
[377008205,1754202651315,-442.69743599,0.00027979,10]
[377008206,1754202651324,-151.0,0.00027981,7]
[377008207,1754202651334,-430.545078,0.00027984,30]
[377008208,1754202651343,-430.545078,0.00027984,30]
[377008209,1754202651352,-430.545078,0.00027984,30]
[377008210,1754202651361,-81778.35108318,0.00027998,2]
[377008211,1754202651370,-151.0,0.00027998,7]
[377008212,1754202651380,-384.42,0.00028,2]
[377008213,1754202651390,-160.0,0.00028,2]
[377008214,1754202651399,-460.0,0.00028013,10]
[377008215,1754202651408,-224.52,0.00028019,30]
[377008216,1754202651418,-151.0,0.00028022,7]
[377008217,1754202651427,-151.0,0.00028022,7]
[377008218,1754202651436,-151.0,0.00028022,7]
[377008219,1754202651445,-151.33949454,0.00028022,7]
[377008220,1754202651455,-152.34173135,0.00028022,7]
[377008221,1754202651464,-199.51544049,0.00028022,7]
[377008222,1754202651473,-151.0,0.00028022,7]
[377008223,1754202651483,-151.0,0.00028022,7]
[377008224,1754202651492,-151.0,0.00028022,7]
[377008225,1754202651501,-500.0,0.00028022,7]
[377008226,1754202651510,-151.41538642,0.00028022,7]
[377008227,1754202651520,-151.59333615,0.00028022,7]
[377008228,1754202651529,-500.0,0.00028022,7]
[377008229,1754202651538,-151.0,0.00028022,7]
[377008230,1754202651547,-151.0,0.00028022,7]
[377008231,1754202651556,-152.36623614,0.00028022,7]
[377008232,1754202651565,-151.34160938,0.00028022,7]
[377008233,1754202651575,-151.0,0.00028022,7]
[377008234,1754202651584,-27.35614972,0.00028022,7]
[377008235,1754202651744,-123.64385028,0.00028022,7]
[377008236,1754202651754,-151.0,0.00028022,7]
[377008237,1754202651763,-265.20236908,0.00028022,2]
[377008238,1754202651776,-234.79763092,0.00028022,2]
[377008239,1754202651786,-83.46236908,0.00028022,7]
[377008240,1754202651798,-67.53763092,0.00028022,7]
[377008241,1754202651810,-151.0,0.00028022,7]
[377008242,1754202651820,-151.0,0.00028022,7]
[377008243,1754202651830,-90.46236908,0.00028022,7]
[377008244,1754202651843,-60.53763092,0.00028022,7]
[377008245,1754202651853,-297.17737841,0.00028051,2]
[377008246,1754202651863,-151.0,0.00028084,7]
[377008247,1754202651873,-1363.75415984,0.00028096,2]
[377008248,1754202651884,-782.24584016,0.00028096,2]
[377008249,1754202651894,-970.0,0.00028096,2]
[377008250,1754202651903,-2265.3266271,0.00028102,2]
[377008251,1754202652028,-329.20566956,0.00027945,10]
[377008252,1754202652040,-130.79433044,0.00027945,10]
[377008253,1754202652049,-460.0,0.00027945,10]
[377008254,1754202652059,-460.0,0.00027945,10]
[377008255,1754202652068,-279.0834228,0.00027945,10]
[377008256,1754202652080,-180.9165772,0.00027945,10]
[377008257,1754202652090,-460.0,0.00028051,10]
[377008258,1754202652099,-2031.14277485,0.00028102,2]
[377008259,1754202652109,-460.0,0.00028111,10]
[377008260,1754202652118,-904.36799495,0.00028111,10]
[377008261,1754202652130,-174.37200505,0.00028111,10]
[377008262,1754202652142,-460.0,0.00028123,10]
[377008263,1754202652151,-856.88,0.00028124,10]
[377008264,1754202652160,-460.0,0.00028125,10]
[377008265,1754202652170,-4193.59587182,0.00028127,2]
[377008266,1754202652182,-460.0,0.00028139,10]
[377008267,1754202652192,-460.0,0.00028139,10]
[377008268,1754202652202,-1078.74,0.00028139,10]
[377008269,1754202652214,-1078.74,0.00028139,10]
[377008270,1754202652224,-460.0,0.0002814,10]
[377008271,1754202652234,-460.0,0.00028141,10]
[377008272,1754202652243,-460.0,0.00028142,10]
[377008273,1754202652253,-1078.74,0.00028142,10]
[377008274,1754202652262,-244.6295578,0.00028142,10]
[377008275,1754202652273,-208.49771507,0.00028142,10]
[377008276,1754202652283,-155.540024,0.00028148,10]
[377008277,1754202652292,-856.88,0.00028148,10]
[377008278,1754202652302,-460.0,0.00028149,10]
[377008279,1754202652311,-460.0,0.00028149,10]
[377008280,1754202652322,-460.0,0.00028149,10]
[377008281,1754202652332,-460.0,0.00028149,10]
[377008282,1754202652342,-460.0,0.00028149,10]
[377008283,1754202652353,-460.0,0.00028149,10]
[377008284,1754202652362,-460.0,0.00028149,10]
[377008285,1754202652372,-460.0,0.00028149,10]
[377008286,1754202652382,-460.0,0.00028149,10]
[377008287,1754202652393,-168.25,0.00028149,10]
[377008288,1754202652403,-1078.74,0.00028149,10]
[377008289,1754202652414,-1078.74,0.00028149,10]
[377008290,1754202652423,-1078.74,0.00028149,10]
[377008291,1754202652432,-1078.74,0.00028149,10]
[377008292,1754202652443,-1078.74,0.00028149,10]
[377008293,1754202652453,-1078.74,0.00028149,10]
[377008294,1754202652462,-1078.74,0.00028149,10]
[377008295,1754202652472,-1078.74,0.00028149,10]
[377008296,1754202652483,-1078.74,0.00028149,10]
[377008297,1754202652492,-1078.74,0.00028149,10]
[377008298,1754202652502,-1078.74,0.00028149,10]
[377008299,1754202652511,-1078.86,0.00028149,10]
[377008300,1754202652521,-151.0,0.00028149,7]
[377008301,1754202652530,-151.0,0.00028149,7]
[377008302,1754202652540,-151.0,0.00028149,7]
[377008303,1754202652549,-856.88,0.00028149,10]
[377008304,1754202652558,-4193.59587182,0.00028163,2]
[377008305,1754202652567,-856.88,0.00028164,10]
[377008306,1754202652576,-856.88,0.00028165,10]
[377008307,1754202652585,-856.88,0.00028165,10]
[377008308,1754202652594,-856.88,0.00028165,10]
[377008309,1754202652603,-856.88,0.00028165,10]
[377008310,1754202652612,-856.88,0.00028165,10]
[377008311,1754202652621,-857.03999999,0.00028165,10]
[377008312,1754202652631,-502.15544517,0.00028173,5]
[377008313,1754202652641,-500.0,0.00028173,5]
[377008314,1754202652650,-500.0,0.00028173,2]
[377008315,1754202652659,-500.0,0.00028173,5]
[377008316,1754202652668,-500.0,0.00028173,5]
[377008317,1754202652678,-500.0,0.00028173,5]
[377008318,1754202652687,-500.0,0.00028173,5]
[377008319,1754202652696,-500.0,0.00028173,5]
[377008320,1754202652705,-500.0,0.00028173,5]
[377008321,1754202652717,-500.0,0.00028173,5]
[377008322,1754202652728,-500.0,0.00028173,5]
[377008323,1754202652737,-500.0,0.00028173,3]
[377008324,1754202652747,-184.09186078,0.00028173,5]
[377008325,1754202652759,-500.0,0.00028173,5]
[377008326,1754202652768,-500.0,0.00028173,5]
[377008327,1754202652779,-624.73570136,0.00028173,5]
[377008328,1754202652790,-151.0,0.00028173,7]
[377008329,1754202652799,-843.83367532,0.00028187,4]
[377008330,1754202652809,-934.91835381,0.00028187,2]
[377008331,1754202652819,-151.413033,0.00028187,7]
[377008332,1754202652829,-151.0,0.00028187,7]
[377008333,1754202652838,-151.0,0.00028187,7]
[377008334,1754202652847,-151.0,0.00028187,7]
[377008335,1754202652866,-151.0,0.00028187,7]
[377008336,1754202652876,-152.879369,0.00028187,7]
[377008337,1754202652886,-151.0,0.00028187,7]
[377008338,1754202652896,-151.0,0.00028187,7]
[377008339,1754202652906,-151.0,0.00028187,7]
[377008340,1754202652915,-151.0,0.00028187,7]
[377008341,1754202652925,-151.0,0.00028187,7]
[377008342,1754202652934,-151.0,0.00028187,7]
[377008343,1754202652944,-151.0,0.00028187,7]
[377008344,1754202652954,-500.0,0.00028187,5]
[377008345,1754202652964,-151.0,0.00028187,15]
[377008346,1754202652974,-325.0,0.00028187,7]
[377008347,1754202652984,-151.0,0.00028188,7]
[377008348,1754202652993,-151.0,0.00028188,7]
[377008349,1754202653003,-151.0,0.00028188,7]
[377008350,1754202653012,-152.660725,0.00028188,7]
[377008351,1754202653021,-151.0,0.00028188,7]
[377008352,1754202653030,-151.0,0.00028188,7]
[377008353,1754202653039,-151.0,0.00028188,7]
[377008354,1754202653049,-151.0,0.00028188,7]
[377008355,1754202653058,-233.297057,0.00028188,7]
[377008356,1754202653067,-151.0,0.00028188,7]
[377008357,1754202653077,-151.0,0.00028188,7]
[377008358,1754202653086,-151.0,0.00028188,7]
[377008359,1754202653096,-151.0,0.00028188,7]
[377008360,1754202653105,-151.0,0.00028188,7]
[377008361,1754202653114,-151.0,0.00028188,7]
[377008362,1754202653123,-151.0,0.00028188,7]
[377008363,1754202653133,-151.0,0.00028188,7]
[377008364,1754202653145,-261.153731,0.00028188,7]
[377008365,1754202653155,-200.0,0.0002819,120]
[377008366,1754202653165,-4193.59587182,0.0002819,2]
[377008367,1754202653174,-4193.59587182,0.00028192,2]
[377008368,1754202653184,-827.07,0.000282,7]
[377008369,1754202653194,-6026.41,0.000282,7]
[377008370,1754202653204,-2408.18,0.000282,7]
[377008371,1754202653214,-151.0,0.000282,19]
[377008372,1754202653224,-38654.88698597,0.000282,2]
[377008373,1754202653238,-350.8164,0.000282,2]
[377008374,1754202653249,-359.99275684,0.000282,2]
[377008375,1754202653367,-684.48,0.0002698,10]
[377008376,1754202653376,-460.0,0.00027945,10]
[377008377,1754202653386,-460.0,0.00027945,10]
[377008378,1754202653399,-460.0,0.00027945,10]
[377008379,1754202653409,-452.73850608,0.00027945,10]
[377008380,1754202653420,-7.26149392,0.00027945,10]
[377008381,1754202653430,-278.94901738,0.00027945,10]
[377008382,1754202653440,-460.0,0.00028149,10]
[377008383,1754202653450,-460.0,0.0002815,10]
[377008384,1754202653459,-460.0,0.00028151,10]
[377008385,1754202653469,-460.0,0.00028151,10]
[377008386,1754202653478,-460.0,0.00028151,10]
[377008387,1754202653594,-460.0,0.00028151,10]
[377008388,1754202653603,-460.0,0.00028151,10]
[377008389,1754202653614,-25107.68385719,0.000282,2]
[377008390,1754202653626,-2789.68427491,0.000282,7]
[377008391,1754202653635,-151.0,0.000282,7]
[377008392,1754202653645,-151.0,0.000282,7]
[377008393,1754202653655,-151.0,0.00028202,7]
[377008394,1754202653666,-151.0,0.00028202,7]
[377008395,1754202653675,-151.0,0.00028202,7]
[377008396,1754202653685,-151.0,0.00028202,7]
[377008397,1754202653694,-151.0,0.00028202,7]
[377008398,1754202653703,-151.0,0.00028202,7]
[377008399,1754202653713,-152.57782,0.00028202,7]
[377008400,1754202653722,-151.0,0.00028202,7]
[377008401,1754202653731,-151.0,0.00028202,7]
[377008402,1754202653740,-151.0,0.00028202,7]
[377008403,1754202653750,-274.11334,0.00028202,7]
[377008404,1754202653759,-151.0,0.00028202,7]
[377008405,1754202653768,-151.0,0.00028202,7]
[377008406,1754202653778,-243.706357,0.00028202,7]
[377008407,1754202653787,-151.0,0.00028202,7]
[377008408,1754202653797,-151.0,0.00028202,7]
[377008409,1754202653806,-151.0,0.00028202,7]
[377008410,1754202653815,-151.0,0.00028202,7]
[377008411,1754202653824,-151.0,0.00028202,7]
[377008412,1754202653834,-151.0,0.00028202,7]
[377008413,1754202653843,-151.0,0.00028202,7]
[377008414,1754202653852,-151.0,0.00028202,7]
[377008415,1754202653861,-151.0,0.00028202,7]
[377008416,1754202653871,-151.0,0.00028202,7]
[377008417,1754202653880,-151.0,0.00028202,7]
[377008418,1754202653890,-151.0,0.00028202,7]
[377008419,1754202653899,-151.0,0.00028202,7]
[377008420,1754202653908,-151.0,0.00028202,7]
[377008421,1754202653917,-151.0,0.00028202,7]
[377008422,1754202653927,-1975.30293568,0.00028205,2]
[377008423,1754202653937,-163335.44806641,0.00028205,20]
[377008424,1754202653947,-319167.91912055,0.00028205,20]
[377008425,1754202654010,-460.0,0.00027945,10]
[377008426,1754202654020,-462.0024422,0.00027945,10]
[377008427,1754202654029,-460.0,0.00027945,10]
[377008428,1754202654040,-430.545078,0.00027984,30]
[377008429,1754202654050,-460.0,0.00028151,10]
[377008430,1754202654060,-460.0,0.00028151,10]
[377008431,1754202654069,-460.0,0.00028151,10]
[377008432,1754202654079,-88235.50499962,0.00028205,20]
[377008433,1754202654091,-95721.83320814,0.00028205,20]
[377008434,1754202654103,-477510.25683469,0.00028205,20]
[377008437,1754202730052,162.0,0.00022,2]
[377008440,1754203322944,166.194898,0.00013699,2]
[377008442,1754203323153,166.194898,0.00021404,2]
[377008444,1754203479753,179.85613664,0.00022359,2]
[377008450,1754203537085,-542.2,0.00023648,2]
[377008451,1754203537105,-150.12737016,0.000237,2]
[377008452,1754203537126,-1074.39233523,0.00023759,2]
[377008453,1754203599102,-180.1826056,0.00023422,2]
[377008457,1754203758029,4819.8173944,0.00023061,2]
[377008459,1754203777549,166.64887445,0.00021659,2]
[377008466,1754203832531,-570.81,0.00023744,2]
[377008467,1754203832542,-300.0,0.00023757,2]
[377008468,1754203832552,-1200.0,0.00023758,2]
[377008469,1754203832563,-300.0,0.00023758,2]